bitfinex/quotes_BTCUSD_20241202
["timestamp","ask_amount","ask_price","bid_price","bid_amount"]
[1733161249706,1.15768326,95334.0,95333.0,77.64949258]
[1733161249923,0.97477179,95334.0,95333.0,77.64949258]
[1733161250144,0.96777179,95334.0,95333.0,77.64949258]
[1733161250363,1.20347817,95334.0,95333.0,77.64949258]
[1733161250582,1.20330696,95334.0,95333.0,77.64949258]
[1733161250814,0.96577179,95334.0,95333.0,77.64949258]
[1733161251068,1.08249644,95334.0,95333.0,77.64949258]
[1733161251300,0.68836542,95334.0,95333.0,77.64949258]
[1733161251518,5.72723542,95334.0,95333.0,77.64949258]
[1733161251746,5.98412046,95334.0,95333.0,77.64949258]
[1733161251965,5.80253018,95334.0,95333.0,77.64949258]
[1733161252187,6.03106535,95334.0,95333.0,77.64949258]
[1733161252371,6.01506535,95334.0,95333.0,77.64949258]
[1733161252635,6.01591525,95334.0,95333.0,77.64949258]
[1733161252855,5.79361989,95334.0,95333.0,77.59037393]
[1733161253074,5.80261989,95334.0,95333.0,77.59037393]
[1733161253287,5.7672421,95334.0,95333.0,77.59037393]
[1733161253505,4.81828844,95334.0,95333.0,77.59037393]
[1733161253733,0.68736542,95334.0,95333.0,77.59037393]
[1733161254178,0.93736542,95334.0,95333.0,77.59037393]
[1733161254397,0.265,95334.0,95333.0,77.59037393]
[1733161254625,0.259,95334.0,95333.0,77.59037393]
[1733161255120,0.257,95334.0,95333.0,77.59037393]
[1733161255539,0.266,95334.0,95333.0,77.59037393]
[1733161255726,0.257,95334.0,95333.0,77.59037393]
[1733161255990,0.15,95342.0,95333.0,77.59037393]
[1733161256197,0.00059,95349.0,95333.0,77.59037393]
[1733161256886,0.00059,95349.0,95334.0,0.10284521]
[1733161257110,0.00059,95349.0,95334.0,0.237313]
[1733161257346,0.9895918,95364.0,95343.0,0.13446779]
[1733161257347,0.7798698,95364.0,95343.0,0.13446779]
[1733161257563,0.7798698,95364.0,95334.0,0.10284521]
[1733161257564,0.25,95364.0,95349.0,0.13446779]
[1733161257794,0.25,95378.0,95350.0,0.28884521]
[1733161258070,0.25,95378.0,95350.0,0.420313]
[1733161258319,0.03042051,95386.0,95361.0,0.12246779]
[1733161258563,0.03042051,95386.0,95334.0,0.00059]
[1733161258564,0.014,95370.0,95339.0,0.30846779]
[1733161258841,5.16003521,95383.0,95341.0,0.12246779]
[1733161258842,0.209734,95359.0,95341.0,0.12246779]
[1733161259065,0.209734,95359.0,95342.0,0.10284521]
[1733161259291,0.209729,95362.0,95342.0,0.10284521]
[1733161259830,0.209731,95360.0,95342.0,0.10284521]
[1733161260080,0.15,95361.0,95342.0,0.225313]
[1733161260559,0.15,95369.0,95342.0,0.225313]
[1733161260785,0.5298698,95372.0,95354.0,0.12246779]
[1733161261011,0.003,95370.0,95362.0,0.12246779]
[1733161261242,0.00231985,95379.0,95362.0,0.12246779]
[1733161261491,0.209691,95378.0,95362.0,0.12246779]
[1733161261978,0.00231985,95378.0,95362.0,0.12246779]
[1733161262225,0.004,95372.0,95363.0,0.10284521]
[1733161262467,0.0017274,95384.0,95363.0,0.10284521]
[1733161262468,0.209683,95382.0,95363.0,0.225313]
[1733161262918,0.15,95383.0,95363.0,0.225313]
[1733161263156,0.0017274,95384.0,95366.0,0.12246779]
[1733161263157,0.00404703,95384.0,95366.0,0.12246779]
[1733161263386,0.0017274,95384.0,95375.0,0.12246779]
[1733161263616,0.0017274,95384.0,95375.0,0.225313]
[1733161264311,0.0017274,95384.0,95376.0,0.10284521]
[1733161264532,0.007,95378.0,95376.0,0.10284521]
[1733161264758,0.003,95378.0,95376.0,0.10284521]
[1733161265263,0.21096355,95377.0,95375.0,0.001]
[1733161265474,0.21096355,95377.0,95366.0,5.902e-05]
[1733161265475,0.15231985,95376.0,95366.0,5.902e-05]
[1733161265690,0.15,95376.0,95366.0,0.10290423]
[1733161265907,0.005,95378.0,95369.0,0.12246779]
[1733161266126,0.214694,95378.0,95369.0,0.12246779]
[1733161266425,0.214694,95378.0,95366.0,0.10290423]
[1733161266663,0.359703,95373.0,95366.0,5.902e-05]
[1733161266920,0.569406,95373.0,95366.0,5.902e-05]
[1733161267133,0.359703,95373.0,95366.0,5.902e-05]
[1733161267563,0.001,95378.0,95366.0,5.902e-05]
[1733161267781,0.001,95378.0,95371.0,0.12246779]
[1733161267782,0.004,95376.0,95371.0,0.12246779]
[1733161267998,0.0017274,95384.0,95372.0,0.10284521]
[1733161268454,0.002,95373.0,95372.0,0.10284521]
[1733161268677,0.0017274,95384.0,95373.0,0.12246779]
[1733161268919,0.004,95376.0,95374.0,0.10284521]
[1733161269125,0.005,95376.0,95374.0,0.10284521]
[1733161269563,0.209647,95399.0,95374.0,0.10284521]
[1733161269564,0.02,95405.0,95383.0,0.12246779]
[1733161269800,0.25,95418.0,95387.0,0.12246779]
[1733161270023,0.4375,95420.0,95376.0,0.0782]
[1733161270024,0.4235,95420.0,95395.0,0.12246779]
[1733161270237,0.4235,95420.0,95376.0,0.0782]
[1733161270238,0.4235,95420.0,95399.0,0.12246779]
[1733161270485,0.4235,95420.0,95406.0,0.12246779]
[1733161270710,0.211307,95430.0,95407.0,0.12467651]
[1733161270934,0.014,95428.0,95406.0,0.12246779]
[1733161271159,0.00231866,95427.0,95406.0,0.217313]
[1733161271418,0.25,95411.0,95388.0,0.11446779]
[1733161271632,0.08201919,95410.0,95391.0,0.11446779]
[1733161271852,0.00231909,95409.0,95391.0,0.11446779]
[1733161272071,0.15,95405.0,95389.0,0.10284521]
[1733161272512,0.15,95405.0,95389.0,0.2390443]
[1733161272725,0.359634,95405.0,95389.0,0.217313]
[1733161272945,0.209643,95401.0,95389.0,0.217313]
[1733161273158,0.15,95403.0,95389.0,0.217313]
[1733161273811,0.009,95427.0,95397.0,0.11446779]
[1733161274006,0.002,95405.0,95404.0,0.30046779]
[1733161274318,0.00017708,95418.0,95410.0,0.11446779]
[1733161274527,0.00017708,95418.0,95411.0,0.10284521]
[1733161274745,0.00017708,95418.0,95411.0,0.10084521]
[1733161274961,0.00417708,95418.0,95410.0,0.11046779]
[1733161275182,0.00417708,95418.0,95410.0,0.213313]
[1733161275405,0.15,95416.0,95410.0,0.10284521]
[1733161275644,0.15,95416.0,95376.0,0.0782]
[1733161275645,4.278,95415.0,95385.0,0.11046779]
[1733161275871,0.209654,95396.0,95386.0,0.10284521]
[1733161276089,0.15,95401.0,95386.0,0.10284521]
[1733161276318,0.209652,95397.0,95386.0,0.10284521]
[1733161276782,0.15,95401.0,95386.0,0.10284521]
[1733161276783,0.15,95401.0,95389.0,0.11046779]
[1733161277206,0.359641,95401.0,95389.0,0.11046779]
[1733161277644,0.15,95404.0,95389.0,0.11046779]
[1733161277864,0.002,95397.0,95389.0,0.11046779]
[1733161278085,0.002,95401.0,95392.0,0.11046779]
[1733161278338,0.005,95401.0,95393.0,0.213313]
[1733161278759,0.15,95404.0,95393.0,0.213313]
[1733161279019,0.003,95404.0,95393.0,0.213313]
[1733161279284,0.003,95404.0,95379.0,0.10506528]
[1733161279489,0.003,95404.0,95320.0,0.2]
[1733161279490,0.209681,95383.0,95372.0,0.10506528]
[1733161279721,0.209681,95383.0,95373.0,0.10506528]
[1733161279722,0.209685,95381.0,95373.0,0.10506528]
[1733161279958,0.209694,95377.0,95359.0,0.10506528]
[1733161280171,0.00231978,95381.0,95367.0,0.10506528]
[1733161280426,0.15,95380.0,95366.0,0.10506528]
[1733161280708,0.209685,95381.0,95366.0,0.10506528]
[1733161280709,0.15,95378.0,95366.0,0.10506528]
[1733161280922,0.15,95378.0,95372.0,0.004]
[1733161281384,0.459661,95392.0,95373.0,0.10284521]
[1733161281385,0.15,95391.0,95373.0,0.10284521]
[1733161281865,0.005,95380.0,95373.0,0.10284521]
[1733161282103,0.15,95391.0,95377.0,0.10506528]
[1733161282584,0.289232,95405.0,95379.0,0.10506528]
[1733161282851,0.00231922,95402.0,95381.0,0.10506528]
[1733161283126,0.256,95408.0,95389.0,0.10306528]
[1733161283356,0.256,95408.0,95382.0,0.10284521]
[1733161283357,0.209658,95394.0,95383.0,0.10306528]
[1733161283592,0.209658,95394.0,95384.0,0.10284521]
[1733161283825,0.0783,95392.0,95370.0,0.10306528]
[1733161284089,0.25,95389.0,95379.0,0.001]
[1733161284358,0.25,95389.0,95366.0,5.902e-05]
[1733161284359,0.15,95382.0,95366.0,5.902e-05]
[1733161284578,0.15,95380.0,95369.0,0.10306528]
[1733161284812,0.15,95380.0,95367.0,0.10284521]
[1733161285068,0.15,95380.0,95373.0,0.0017268]
[1733161285287,0.359689,95380.0,95373.0,0.0017268]
[1733161285571,0.15,95375.0,95373.0,0.0017268]
[1733161285818,0.00231987,95374.0,95373.0,0.0017268]
[1733161286047,0.36201987,95374.0,95373.0,0.0017268]
[1733161286287,0.3597,95374.0,95373.0,0.0017268]
[1733161287031,0.3597,95374.0,95373.0,0.0057268]
[1733161287271,0.3597,95374.0,95373.0,0.0107268]
[1733161287505,0.3597,95374.0,95373.0,0.0057268]
[1733161287744,0.3737,95374.0,95373.0,0.0057268]
[1733161288001,1.25759156,95374.0,95373.0,0.0107268]
[1733161288236,0.85085072,95367.0,95366.0,5.902e-05]
[1733161288460,0.72066972,95358.0,95357.0,0.0008639]
[1733161288721,6.0029928,95358.0,95357.0,0.0008639]
[1733161288960,6.12434843,95358.0,95357.0,0.00104037]
[1733161289390,0.9953264,95358.0,95357.0,0.00104037]
[1733161289650,6.11666496,95358.0,95357.0,0.00104037]
[1733161289886,0.359788,95334.0,95320.0,0.2]
[1733161290944,0.373788,95334.0,95320.0,0.2]
[1733161291203,0.80086793,95334.0,95320.0,0.2]
[1733161291467,0.83038126,95334.0,95320.0,0.2]
[1733161291727,0.83038126,95334.0,95333.0,77.59137393]
[1733161292241,0.359788,95334.0,95333.0,77.59137393]
[1733161293022,0.359788,95334.0,95333.0,77.59237393]
[1733161293253,0.25,95347.0,95333.0,77.59237393]
[1733161293582,0.4235,95353.0,95334.0,0.10284521]
[1733161293797,0.4235,95353.0,95340.0,0.28906528]
[1733161294041,0.4235,95353.0,95346.0,0.10306528]
[1733161294319,0.1675,95353.0,95347.0,0.10284521]
[1733161294524,0.1675,95353.0,95350.0,0.10106528]
[1733161294826,0.007,95353.0,95351.0,0.10284521]
[1733161295061,0.00017693,95358.0,95351.0,0.10284521]
[1733161295315,0.00017693,95358.0,95353.0,0.186]
[1733161295594,0.00017693,95358.0,95357.0,0.186]
[1733161295868,0.00017693,95358.0,95357.0,0.38991049]
[1733161296103,0.135,95373.0,95357.0,0.38991049]
[1733161296104,0.135,95373.0,95366.0,0.186]
[1733161296349,0.135,95373.0,95372.0,0.186]
[1733161296588,0.135,95373.0,95372.0,0.38991049]
[1733161296810,0.25,95407.0,95383.0,0.186]
[1733161297034,0.25,95407.0,95373.0,0.209702]
[1733161297035,0.25,95407.0,95387.0,0.186]
[1733161297259,0.209618,95412.0,95387.0,0.186]
[1733161297486,0.209641,95402.0,95382.0,0.10106528]
[1733161297715,0.001,95373.0,95372.0,0.005]
[1733161299059,0.15,95374.0,95353.0,0.10106528]
[1733161299279,0.15,95372.0,95354.0,0.13155174]
[1733161299727,0.15,95372.0,95354.0,0.10284521]
[1733161300396,0.210702,95373.0,95354.0,0.10284521]
[1733161300397,0.15,95370.0,95354.0,0.10284521]
[1733161300839,0.15,95370.0,95354.0,0.10584521]
[1733161301055,0.15,95368.0,95354.0,0.10584521]
[1733161301296,0.15,95368.0,95354.0,0.003]
[1733161301515,0.15,95365.0,95354.0,0.003]
[1733161301736,0.15,95358.0,95354.0,0.003]
[1733161302629,0.15,95358.0,95355.0,0.10284521]
[1733161302854,0.001,95370.0,95355.0,0.10284521]
[1733161303082,0.13706245,95379.0,95355.0,0.10284521]
[1733161303083,0.15,95382.0,95361.0,0.186]
[1733161303314,0.256,95388.0,95362.0,0.10284521]
[1733161303607,0.001,95368.0,95362.0,0.10284521]
[1733161303826,0.001,95370.0,95363.0,0.186]
[1733161304044,0.001,95370.0,95364.0,0.10284521]
[1733161304303,0.209688,95380.0,95364.0,0.10284521]
[1733161304531,0.15,95374.0,95355.0,0.28706528]
[1733161304763,0.15,95374.0,95356.0,0.10284521]
[1733161304997,0.00104034,95373.0,95356.0,0.10284521]
[1733161305257,0.15,95372.0,95356.0,0.10284521]
[1733161305496,0.00104034,95373.0,95356.0,0.10284521]
[1733161305725,0.15,95377.0,95356.0,0.10284521]
[1733161305963,0.15,95377.0,95361.0,0.186]
[1733161306200,0.15,95377.0,95362.0,0.28884521]
[1733161306448,0.001,95370.0,95369.0,0.28706528]
[1733161306692,0.001,95370.0,95369.0,0.38991049]
[1733161306932,0.59170645,95400.0,95372.0,0.186]
[1733161306933,0.001,95377.0,95372.0,0.186]
[1733161307162,0.001,95377.0,95373.0,0.10284521]
[1733161307423,0.002,95377.0,95376.0,0.186]
[1733161307655,0.001,95377.0,95376.0,0.28884521]
[1733161307894,0.1675,95400.0,95377.0,0.186]
[1733161308133,0.1675,95400.0,95381.0,0.185]
[1733161308363,0.1675,95400.0,95382.0,0.10284521]
[1733161308602,0.1675,95400.0,95388.0,0.185]
[1733161308869,0.1675,95400.0,95389.0,0.10284521]
[1733161309363,0.1675,95400.0,95389.0,0.28784521]
[1733161309600,0.16767716,95400.0,95389.0,0.28784521]
[1733161309861,0.16767716,95400.0,95397.0,0.185]
[1733161310096,0.16767716,95400.0,95399.0,0.184]
[1733161310333,0.16767716,95400.0,95399.0,0.28684521]
[1733161310559,0.17167716,95400.0,95399.0,0.28684521]
[1733161310798,0.17167716,95400.0,95399.0,0.34660156]
[1733161311032,0.17067716,95400.0,95399.0,0.28684521]
[1733161311297,0.16767716,95400.0,95399.0,0.28684521]
[1733161311513,0.16767716,95400.0,95399.0,0.29084521]
[1733161311948,0.16767716,95400.0,95399.0,0.10684521]
[1733161312840,0.16767716,95400.0,95399.0,0.32603626]
[1733161313060,0.0008634,95411.0,95410.0,0.28506528]
[1733161313295,0.001729,95430.0,95410.0,0.28506528]
[1733161313296,0.001729,95430.0,95418.0,0.183]
[1733161313549,0.001729,95430.0,95419.0,0.41351149]
[1733161313800,0.001729,95430.0,95429.0,0.31064428]
[1733161314046,0.0017318,95448.0,95447.0,0.10106528]
[1733161314292,0.0017318,95448.0,95447.0,0.20391049]
[1733161314557,0.0017318,95448.0,95447.0,0.38591049]
[1733161315022,0.0017284,95452.0,95451.0,0.28306528]
[1733161315285,0.0008645,95457.0,95456.0,0.183]
[1733161315515,0.000864,95466.0,95456.0,0.183]
[1733161315516,0.000864,95466.0,95463.0,0.209504]
[1733161315749,0.00145465,95466.0,95465.0,0.2095]
[1733161315991,0.00145465,95466.0,95465.0,0.10284521]
[1733161316500,0.00145465,95466.0,95452.0,0.10006528]
[1733161316748,0.00145465,95466.0,95453.0,0.10284521]
[1733161316975,0.001,95457.0,95456.0,0.009]
[1733161317203,0.08265465,95466.0,95440.0,0.10006528]
[1733161317438,0.08265465,95466.0,95465.0,0.007]
[1733161317665,0.10297231,95466.0,95465.0,0.007]
[1733161318106,0.08365465,95466.0,95465.0,0.007]
[1733161318333,0.00245465,95466.0,95465.0,0.007]
[1733161318816,0.00245465,95466.0,95452.0,0.001]
[1733161318817,0.00145465,95466.0,95452.0,0.001]
[1733161319075,0.00145465,95466.0,95453.0,0.10284521]
[1733161319310,0.00145465,95466.0,95456.0,0.188]
[1733161319530,0.00245465,95466.0,95457.0,0.10284521]
[1733161319759,0.00245465,95466.0,95464.0,0.209502]
[1733161319978,0.00245465,95466.0,95465.0,0.10284521]
[1733161319979,0.00145465,95466.0,95465.0,0.10284521]
[1733161320436,0.00145465,95466.0,95465.0,0.14408666]
[1733161320437,0.00245465,95466.0,95465.0,0.14408666]
[1733161320680,0.0008644,95469.0,95467.0,0.13706544]
[1733161320924,0.00104148,95469.0,95468.0,0.44940465]
[1733161321157,0.000864,95473.0,95472.0,0.10006528]
[1733161321413,0.000864,95473.0,95472.0,0.20291049]
[1733161322552,0.000864,95473.0,95472.0,0.10284521]
[1733161322780,0.209485,95472.0,95468.0,0.00017708]
[1733161323053,0.209489,95470.0,95468.0,0.00017708]
[1733161323276,0.000864,95473.0,95468.0,0.00017708]
[1733161323503,0.000864,95473.0,95472.0,0.014]
[1733161323746,0.000864,95473.0,95472.0,0.005]
[1733161323991,0.000864,95473.0,95468.0,0.00017708]
[1733161323992,0.000864,95473.0,95468.0,0.00517708]
[1733161324228,0.000864,95473.0,95468.0,0.00017708]
[1733161324229,0.209492,95469.0,95468.0,0.00017708]
[1733161324459,0.209492,95469.0,95431.0,0.10006528]
[1733161324460,0.1108445,95466.0,95435.0,0.209565]
[1733161324690,0.1108445,95466.0,95436.0,0.16368119]
[1733161324691,0.21077922,95466.0,95436.0,0.16368119]
[1733161324921,0.209522,95456.0,95436.0,0.16368119]
[1733161325161,0.209507,95462.0,95436.0,0.10284521]
[1733161325394,0.209528,95453.0,95436.0,0.10284521]
[1733161325680,0.09993472,95458.0,95436.0,0.10284521]
[1733161325973,0.1108445,95465.0,95436.0,0.10284521]
[1733161326203,0.11316207,95466.0,95436.0,0.10384521]
[1733161326436,0.1108445,95466.0,95437.0,0.22886207]
[1733161326663,0.1108445,95466.0,95439.0,0.209557]
[1733161326922,0.1001116,95469.0,95440.0,0.10284521]
[1733161327166,0.209494,95468.0,95440.0,0.10284521]
[1733161327402,0.09993472,95449.0,95407.0,0.0891555]
[1733161327640,0.15,95451.0,95401.0,0.0782]
[1733161327641,0.1108445,95446.0,95413.0,0.10284521]
[1733161327899,0.09993472,95444.0,95413.0,0.10284521]
[1733161328131,0.209568,95435.0,95413.0,0.10284521]
[1733161328363,0.1108445,95436.0,95413.0,0.10284521]
[1733161328638,0.1108445,95436.0,95390.0,0.209664]
[1733161328639,0.0495,95453.0,95423.0,0.10284521]
[1733161328879,0.0858,95466.0,95435.0,0.10284521]
[1733161329119,0.0798,95466.0,95443.0,0.209547]
[1733161329377,0.0798,95466.0,95444.0,0.10284521]
[1733161329611,0.07997688,95466.0,95445.0,0.209544]
[1733161329849,0.07997688,95466.0,95446.0,0.10284521]
[1733161330111,0.1108445,95463.0,95446.0,0.10284521]
[1733161330337,0.209519,95457.0,95446.0,0.10284521]
[1733161330826,0.1108445,95454.0,95426.0,0.209584]
[1733161331064,0.419054,95453.0,95427.0,0.15476894]
[1733161331291,0.209558,95439.0,95427.0,0.10284521]
[1733161331516,0.209565,95436.0,95427.0,0.10284521]
[1733161331743,0.1108445,95432.0,95407.0,0.209628]
[1733161331976,0.1108445,95432.0,95406.0,0.10006528]
[1733161331977,0.209575,95431.0,95408.0,0.10284521]
[1733161332242,0.21077922,95427.0,95408.0,0.10284521]
[1733161332475,0.09993472,95425.0,95408.0,0.10284521]
[1733161332702,0.20957,95434.0,95408.0,0.10284521]
[1733161332703,0.1108445,95440.0,95408.0,0.11312973]
[1733161332930,0.001,95432.0,95410.0,0.209621]
[1733161333154,0.1108445,95432.0,95411.0,0.10284521]
[1733161333398,0.001,95432.0,95417.0,0.209605]
[1733161333628,0.001,95432.0,95418.0,0.10284521]
[1733161334071,0.001,95432.0,95428.0,0.20958]
[1733161334314,0.001,95432.0,95430.0,0.209577]
[1733161334560,0.001,95432.0,95431.0,0.10284521]
[1733161335015,0.0831,95463.0,95437.0,0.20956]
[1733161335232,0.0831,95463.0,95438.0,0.10284521]
[1733161335459,0.09993472,95451.0,95438.0,0.10284521]
[1733161335702,0.1108445,95447.0,95426.0,0.0017282]
[1733161335983,0.1108445,95447.0,95431.0,0.006]
[1733161335984,0.001,95432.0,95431.0,0.006]
[1733161336225,0.002,95432.0,95431.0,0.11784521]
[1733161336456,0.001,95432.0,95431.0,0.11184521]
[1733161336686,0.00017682,95447.0,95431.0,0.11420255]
[1733161336925,0.00017682,95447.0,95432.0,0.10284521]
[1733161336926,0.00217682,95447.0,95432.0,0.10284521]
[1733161337399,0.00017682,95447.0,95432.0,0.31241621]
[1733161337647,0.00017682,95447.0,95436.0,0.209563]
[1733161337871,0.00017682,95447.0,95437.0,0.10284521]
[1733161338333,0.209542,95446.0,95437.0,0.10284521]
[1733161338560,0.00017682,95447.0,95437.0,0.10284521]
[1733161338776,0.00017682,95447.0,95437.0,0.10184521]
[1733161339219,0.00017682,95447.0,95437.0,0.10784521]
[1733161339474,0.00017682,95447.0,95437.0,0.10384521]
[1733161339713,0.00017682,95447.0,95437.0,0.10184521]
[1733161339944,0.00017682,95447.0,95437.0,0.10584521]
[1733161340173,0.00017682,95447.0,95437.0,0.002]
[1733161340174,0.209552,95442.0,95437.0,0.002]
[1733161340392,0.09993472,95443.0,95437.0,0.006]
[1733161341325,0.00017682,95447.0,95437.0,0.006]
[1733161341326,0.00017682,95447.0,95438.0,0.10284521]
[1733161341555,0.00017682,95447.0,95439.0,0.03184152]
[1733161341803,0.00017682,95447.0,95440.0,0.10284521]
[1733161342034,0.00017682,95447.0,95445.0,0.209544]
[1733161342284,0.00017682,95447.0,95446.0,0.10284521]
[1733161343932,0.00017682,95447.0,95446.0,0.10984521]
[1733161345608,0.00017682,95447.0,95446.0,0.10457341]
[1733161345856,0.00117682,95447.0,95446.0,0.11357341]
[1733161346093,0.00217682,95447.0,95446.0,0.12157341]
[1733161346597,0.00217682,95447.0,95446.0,0.11357341]
[1733161346598,0.00117682,95447.0,95446.0,0.11357341]
[1733161346833,0.00217682,95447.0,95446.0,0.12157341]
[1733161347573,0.0008641,95469.0,95468.0,0.209494]
[1733161347813,0.001729,95479.0,95472.0,0.209485]
[1733161348053,0.001729,95479.0,95472.0,0.32015692]
[1733161348309,0.001729,95479.0,95477.0,0.209474]
[1733161348613,0.001729,95479.0,95477.0,0.31231921]
[1733161348946,0.000864,95493.0,95486.0,0.209454]
[1733161349179,0.000864,95493.0,95486.0,0.31229921]
[1733161349685,0.00104098,95487.0,95486.0,0.31129921]
[1733161350837,0.00104098,95487.0,95486.0,0.31729921]
[1733161351285,0.00104098,95487.0,95486.0,0.32629921]
[1733161351747,0.00104098,95487.0,95486.0,0.33529921]
[1733161351964,0.00104098,95487.0,95486.0,0.38239552]
[1733161354226,0.00104098,95487.0,95486.0,0.5716163]
[1733161354928,0.00104098,95487.0,95486.0,0.47155102]
[1733161355153,0.00104098,95487.0,95486.0,0.5716163]
[1733161355405,0.00036258,95497.0,95494.0,0.209436]
[1733161355639,0.00036258,95497.0,95496.0,0.10284521]
[1733161356606,0.00036258,95497.0,95496.0,0.19200071]
[1733161356845,0.00036258,95497.0,95496.0,0.82556599]
[1733161358262,0.00036258,95497.0,95496.0,0.82756599]
[1733161358487,0.00036258,95497.0,95496.0,0.83456599]
[1733161358700,0.00036258,95497.0,95496.0,0.93739745]
[1733161358910,0.00036258,95497.0,95496.0,0.93039745]
[1733161359129,0.00036258,95497.0,95496.0,0.93939745]
[1733161359575,0.00036258,95497.0,95496.0,0.83656599]
[1733161360743,0.0789,95534.0,95533.0,0.209351]
[1733161360964,0.0484,95541.0,95533.0,0.31219621]
[1733161361197,0.0818,95545.0,95537.0,0.209341]
[1733161361414,0.0818,95545.0,95542.0,0.20933]
[1733161361651,0.0818,95545.0,95543.0,0.10284521]
[1733161362150,0.0818,95545.0,95512.0,0.0891555]
[1733161362151,0.08197698,95545.0,95512.0,0.0891555]
[1733161362374,0.08197698,95545.0,95492.0,0.0755]
[1733161362375,0.1108445,95544.0,95523.0,0.209371]
[1733161362586,0.08197698,95545.0,95507.0,0.0891555]
[1733161362587,0.08197698,95545.0,95534.0,0.209349]
[1733161362830,0.08197698,95545.0,95535.0,0.10284521]
[1733161363049,0.08197698,95545.0,95543.0,0.003]
[1733161363283,0.08197698,95545.0,95544.0,0.10284521]
[1733161364420,0.08197698,95545.0,95544.0,0.10784521]
[1733161364669,0.08197698,95545.0,95544.0,0.10284521]
[1733161365132,0.08197698,95545.0,95544.0,0.005]
[1733161365367,0.08197698,95545.0,95544.0,0.002]
[1733161365583,0.08197698,95545.0,95544.0,0.008]
[1733161365829,0.08197698,95545.0,95544.0,0.11084521]
[1733161366047,0.08197698,95545.0,95544.0,0.10884521]
[1733161366715,0.08197698,95545.0,95544.0,0.10284521]
[1733161367177,0.08197698,95545.0,95544.0,0.10484521]
[1733161367390,0.08197698,95545.0,95544.0,0.10284521]
[1733161367607,0.08197698,95545.0,95544.0,0.10884521]
[1733161368081,0.08197698,95545.0,95544.0,0.10284521]
[1733161368378,0.08197698,95545.0,95544.0,0.10984521]
[1733161368589,0.08197698,95545.0,95544.0,0.10384521]
[1733161368811,0.08197698,95545.0,95544.0,0.10284521]
[1733161369255,0.08284098,95545.0,95544.0,0.10484521]
[1733161369901,0.08284098,95545.0,95544.0,0.11284521]
[1733161370118,0.08284098,95545.0,95544.0,0.10484521]
[1733161370559,0.08284098,95545.0,95544.0,0.10984521]
[1733161370783,0.08284098,95545.0,95544.0,0.10384521]
[1733161371234,0.08284098,95545.0,95544.0,0.11184521]
[1733161372196,0.08284098,95545.0,95544.0,0.11484521]
[1733161372868,0.00104098,95545.0,95544.0,0.10584521]
[1733161373330,0.00104098,95545.0,95544.0,0.11484521]
[1733161373583,0.00104098,95545.0,95544.0,0.10284521]
[1733161373811,0.00104098,95545.0,95544.0,0.11584521]
[1733161374053,0.0008638,95565.0,95561.0,0.20929]
[1733161374278,0.0008632,95583.0,95571.0,0.209268]
[1733161374512,0.0008632,95583.0,95571.0,0.10284521]
[1733161376644,0.0008632,95583.0,95571.0,0.11184521]
[1733161377400,0.0008632,95583.0,95571.0,0.11684521]
[1733161377867,0.45587422,95572.0,95571.0,0.009]
[1733161378341,0.34502972,95572.0,95571.0,0.014]
[1733161378786,0.34502972,95572.0,95571.0,0.009]
[1733161379472,0.34502972,95572.0,95553.0,0.209306]
[1733161379694,0.09993472,95570.0,95554.0,0.10284521]
[1733161380866,0.1108445,95561.0,95542.0,0.20933]
[1733161381106,0.1108445,95567.0,95554.0,0.007]
[1733161381387,0.1108445,95567.0,95555.0,0.10284521]
[1733161381883,0.3201225,95567.0,95555.0,0.10284521]
[1733161382109,0.1108445,95567.0,95555.0,0.10284521]
[1733161382585,0.0959589,95572.0,95555.0,0.10284521]
[1733161382586,0.2459589,95572.0,95555.0,0.10284521]
[1733161382821,0.0959589,95572.0,95556.0,0.01038452]
[1733161383056,0.0959589,95572.0,95557.0,0.10284521]
[1733161383287,0.0959589,95572.0,95539.0,0.0891555]
[1733161383288,0.0150589,95572.0,95569.0,0.418543]
[1733161383515,0.0150589,95572.0,95571.0,0.209268]
[1733161383801,0.0150589,95572.0,95571.0,0.31211321]
[1733161385277,0.0150589,95572.0,95571.0,0.10284521]
[1733161385505,0.0148589,95572.0,95571.0,0.10284521]
[1733161386203,0.0148589,95572.0,95571.0,0.11184521]
[1733161386433,0.0148589,95572.0,95571.0,0.10284521]
[1733161386660,0.0148589,95572.0,95571.0,0.10684521]
[1733161387128,0.0148589,95572.0,95571.0,0.11184521]
[1733161387361,0.0148589,95572.0,95571.0,0.10584521]
[1733161387881,0.45483812,95572.0,95571.0,0.012]
[1733161388146,0.45483812,95572.0,95571.0,0.011]
[1733161388375,0.34399362,95572.0,95571.0,0.11384521]
[1733161388599,0.2440589,95572.0,95571.0,0.11384521]
[1733161388830,0.34399362,95572.0,95571.0,0.10484521]
[1733161389286,0.34399362,95572.0,95571.0,0.10884521]
[1733161389517,0.34399362,95572.0,95571.0,0.10684521]
[1733161390245,0.0148589,95572.0,95571.0,0.10684521]
[1733161391940,0.0148589,95572.0,95571.0,0.10284521]
[1733161392171,0.0148589,95572.0,95571.0,0.007]
[1733161392412,0.26479362,95572.0,95571.0,0.007]
[1733161392660,0.1648589,95572.0,95571.0,0.007]
[1733161392896,0.26479362,95572.0,95554.0,0.0017264]
[1733161393122,0.26479362,95572.0,95556.0,0.209301]
[1733161393123,0.1648589,95572.0,95556.0,0.209301]
[1733161393365,0.0148589,95572.0,95571.0,0.006]
[1733161393619,0.0148589,95572.0,95557.0,0.10284521]
[1733161393847,0.0148589,95572.0,95571.0,0.004]
[1733161395062,0.0148589,95572.0,95557.0,0.10284521]
[1733161395288,0.0148589,95572.0,95571.0,0.10284521]
[1733161396045,0.0148589,95572.0,95571.0,0.10684521]
[1733161398206,0.2241249,95572.0,95571.0,0.10684521]
[1733161398456,0.0148589,95572.0,95571.0,0.10684521]
[1733161398719,0.0148589,95572.0,95571.0,0.004]
[1733161398955,5.47563812,95572.0,95571.0,0.004]
[1733161399187,5.50527552,95572.0,95571.0,0.004]
[1733161400404,5.73564906,95572.0,95571.0,0.004]
[1733161400624,2.24727552,95572.0,95571.0,0.004]
[1733161401375,1.34943102,95572.0,95571.0,0.004]
[1733161401598,1.34943102,95572.0,95571.0,0.10684521]
[1733161401599,0.0148589,95572.0,95571.0,0.10684521]
[1733161403059,0.0148589,95572.0,95571.0,0.11752973]